[Event "CCT Julius Baer-D2 2024"]
[Site "Online"]
[Date "2024.09.30"]
[Round "56"]
[White "Lazavik, Denis"]
[Black "Martinez Alcantara, Jose Eduardo"]
[Result "1-0"]
[ECO "E20"]
[WhiteElo "2578"]
[BlackElo "2607"]
[Annotator "RC"]
[PlyCount "191"]
[EventDate "2024.09.25"]
[EventType "swiss"]
[EventCountry "NET"]
[SourceTitle "playchess.com"]
[Source "ChessBase"]
[SourceQuality "1"]
[TimeControl "600+2"]

1. d4 {[%emt 0:00:02]} Nf6 {[%emt 0:00:03]} 2. c4 {[%emt 0:00:02]} e6 {[%emt 0:00:01]} 3. Nc3 {[%emt 0:00:02]} Bb4 {[%emt 0:00:01]} 4. f3 {[%emt 0:00:01]} Ba5 {[%emt 0:00:11]} 5. Rb1 {[%emt 0:00:09]} c5 {[%emt 0:00:22]} 6. dxc5 {[%emt 0:00:11]} Na6 {[%emt 0:00:02]} 7. e4 {[%emt 0:00:19]} Bxc3+ {[%emt 0:01:04]} 8. bxc3 {[%emt 0:00:02]} Qc7 {[%emt 0:00:00]} 9. Ne2 {[%emt 0:00:44]} Nxc5 {[%emt 0:00:06]} 10. Nd4 {[%emt 0:00:04]} a6 {[%emt 0:00:02]} 11. Be2 {[%emt 0:00:09]} d6 {[%emt 0:00:03]} 12. O-O {[%emt 0:00:04]} h6 {[%emt 0:00:06]} 13. Be3 {[%emt 0:00:21]} O-O {[%emt 0:00:01]} 14. Qd2 {[%emt 0:00:02]} e5 {[%emt 0:00:12]} 15. Nc2 {[%emt 0:00:14]} Be6 {[%emt 0:00:04]} 16. Nb4 {[%emt 0:00:01]} Rfc8 {[%emt 0:00:27]} 17. Nd5 {[%emt 0:00:12]} Bxd5 {[%emt 0:00:20]} 18. cxd5 {[%emt 0:00:02]} Rab8 {[%emt 0:00:13]} 19. c4 {[%emt 0:00:04]} b6 {[%emt 0:00:09]} 20. g3 {[%emt 0:00:18]} Qe7 {[%emt 0:00:03]} 21. Kg2 {[%emt 0:00:05]} Nfd7 {[%emt 0:00:04]} 22. Bd1 {[%emt 0:00:41]} Nf6 {[%emt 0:00:23]} 23. Rb4 {[%emt 0:00:11]} Nfd7 {[%emt 0:00:15]} 24. Bc2 {[%emt 0:00:10]} Kh8 {[%emt 0:00:03]} 25. Rfb1 {[%emt 0:00:28]} Kg8 {[%emt 0:00:02]} 26. Kg1 {[%emt 0:00:09]} Qd8 {[%emt 0:00:03]} 27. Bd1 {[%emt 0:00:04]} Qe7 {[%emt 0:00:04]} 28. Be2 {[%emt 0:00:01]} Qd8 {[%emt 0:00:01]} 29. Bf1 {[%emt 0:00:02]} Rb7 {[%emt 0:00:21]} 30. Bh3 {[%emt 0:00:07]} Rcb8 {[%emt 0:00:01]} 31. Kg2 {[%emt 0:00:12]} b5 {[%emt 0:00:27]} 32. cxb5 {[%emt 0:00:03]} Rxb5 {[%emt 0:00:46]} 33. Rxb5 {[%emt 0:00:16]} axb5 {[%emt 0:00:29]} 34. Kg1 {[%emt 0:00:34]} Qf6 {[%emt 0:01:43]} 35. Bg2 {[%emt 0:00:25]} Kh7 {[%emt 0:00:35]} 36. Qa5 {[%emt 0:00:28]} Nb6 {[%emt 0:01:30]} 37. Qxb5 {[%emt 0:00:16]} Nbd7 {[%emt 0:00:10]} 38. Qf1 {[%emt 0:00:02]} Ra8 {[%emt 0:00:00]} 39. Qe2 {[%emt 0:00:16]} Ra3 {[%emt 0:00:11]} 40. Bh3 {[%emt 0:00:17]} Qd8 {[%emt 0:00:01]} 41. Bf5+ {[%emt 0:00:42]} g6 {[%emt 0:00:01]} 42. Bxd7 {[%emt 0:00:01]} Qxd7 {[%emt 0:00:11]} 43. Bxc5 {[%emt 0:00:15]} dxc5 {[%emt 0:00:00]} 44. Rb2 {[%emt 0:00:04]} Qa4 {[%emt 0:00:25]} 45. Rc2 {[%emt 0:00:06]} Qd4+ {[%emt 0:00:05]} 46. Kg2 {[%emt 0:00:01]} Rd3 {[%emt 0:00:05]} 47. Qf2 {[%emt 0:00:09]} Re3 {[%emt 0:00:08]} 48. d6 {[%emt 0:02:07]} Rd3 {[%emt 0:00:01]} 49. Qxd4 {[%emt 0:00:02]} Rxd4 {[%emt 0:00:00]} 50. Rxc5 {[%emt 0:00:03]} Rxd6 {[%emt 0:00:01]} 51. Rc2 {[%emt 0:00:05]} Rd3 {[%emt 0:00:02]} 52. Rf2 {[%emt 0:00:06]} Ra3 {[%emt 0:00:01]} 53. Kf1 {[%emt 0:00:02]} f5 {[%emt 0:00:04]} 54. Ke1 {[%emt 0:00:03]} Kg7 {[%emt 0:00:03]} 55. Kd1 {[%emt 0:00:01]} Kf6 {[%emt 0:00:04]} 56. Kc1 {[%emt 0:00:01]} Ra4 {[%emt 0:00:02]} 57. Kb2 {[%emt 0:00:02]} Ke6 {[%emt 0:00:01]} 58. Kb3 {[%emt 0:00:01]} Rd4 {[%emt 0:00:01]} 59. a4 {[%emt 0:00:02]} fxe4 {[%emt 0:00:02]} 60. fxe4 {[%emt 0:00:01]} Rxe4 {[%emt 0:00:00]} 61. a5 {[%emt 0:00:00]} Re3+ {[%emt 0:00:02]} 62. Kb4 {[%emt 0:00:01]} Re1 {[%emt 0:00:01]} 63. Ra2 {[%emt 0:00:01]} Rb1+ {[%emt 0:00:01]} 64. Kc4 {[%emt 0:00:02]} Rc1+ {[%emt 0:00:01]} 65. Kd3 {[%emt 0:00:01]} Rd1+ {[%emt 0:00:06]} 66. Ke3 {[%emt 0:00:01]} Rd7 {[%emt 0:00:04]} 67. a6 {[%emt 0:00:01]} Ra7 {[%emt 0:00:00]} 68. Ke4 {[%emt 0:00:01]} Kd6 {[%emt 0:00:03]} 69. Ra5 {[%emt 0:00:01]} h5 {[%emt 0:00:00]} 70. h4 {[%emt 0:00:01]} Kc6 {[%emt 0:00:05]} 71. Kxe5 {[%emt 0:00:02]} Rf7 {[%emt 0:00:00]} 72. Ke6 {[%emt 0:00:03]} Rf8 {[%emt 0:00:03]} 73. a7 {[%emt 0:00:01]} Ra8 {[%emt 0:00:01]} 74. Kf6 {[%emt 0:00:02]} Kb6 {[%emt 0:00:00]} 75. Ra2 {[%emt 0:00:01]} Kb7 {[%emt 0:00:01]} 76. Kxg6 {[%emt 0:00:04]} Rg8+ {[%emt 0:00:01]} 77. Kf7 {[%emt 0:00:03]} Ra8 {[%emt 0:00:04]} 78. Ra3 {[%emt 0:00:03]} Kb6 {[%emt 0:00:03]} 79. Kg6 {[%emt 0:00:01]} Kb7 {[%emt 0:00:02]} 80. Kxh5 {[%emt 0:00:06]} Rh8+ {[%emt 0:00:01]} 81. Kg4 {[%emt 0:00:00]} Ka8 {[%emt 0:00:00]} 82. h5 {[%emt 0:00:01]} Rg8+ {[%emt 0:00:00]} 83. Kh4 {[%emt 0:00:01]} Rg7 {[%emt 0:00:01]} 84. g4 {[%emt 0:00:01]} Rb7 {[%emt 0:00:00]} 85. h6 {[%emt 0:00:02]} Rh7 {[%emt 0:00:02]} 86. Kh5 {[%emt 0:00:01]} Rh8 {[%emt 0:00:00]} 87. g5 {[%emt 0:00:01]} Rc8 {[%emt 0:00:00]} 88. Re3 {[%emt 0:00:02]} Rc7 {[%emt 0:00:02]} 89. Re6 {[%emt 0:00:06]} Re7 {[%emt 0:00:00]} 90. Rf6 {[%emt 0:00:05]} Rf7 {[%emt 0:00:01]} 91. Kg6 {[%emt 0:00:01]} Rb7 {[%emt 0:00:04]} 92. h7 {[%emt 0:00:01]} Kxa7 {[%emt 0:00:18]} 93. h8=Q {[%emt 0:00:03]} Rc7 {[%emt 0:00:01]} 94. Rf7 {[%emt 0:00:02]} Kb7 {[%emt 0:00:00]} 95. Rxc7+ {[%emt 0:00:01]} Ka6 {[%emt 0:00:00]} 96. Qb8 {[%emt 0:00:03]} 1-0